bitfinex/quotes_ETHUSD_20250913
["timestamp","ask_amount","ask_price","bid_price","bid_amount"]
[1757780917874,0.002,4636.0,4635.9,10.79290571]
[1757780918046,0.002,4636.0,4635.9,11.22420571]
[1757780920293,0.002,4636.0,4635.9,12.76632666]
[1757780921158,0.002,4636.0,4635.9,11.22420571]
[1757780924407,0.002,4636.0,4635.9,12.09190571]
[1757780924563,0.002,4636.0,4635.9,12.88390571]
[1757780924894,0.002,4636.0,4635.9,42.88390571]
[1757780925072,0.00038878,4636.0,4635.9,44.80855463]
[1757780927909,0.00038878,4636.0,4635.9,43.94085463]
[1757780928501,0.00038878,4636.0,4635.9,12.01620571]
[1757780928806,0.00038878,4636.0,4635.9,10.78690571]
[1757780930007,0.00038878,4636.0,4635.9,11.26080571]
[1757780930378,0.00038878,4636.0,4635.9,11.25980571]
[1757780930731,0.00038878,4636.0,4635.9,7.00150571]
[1757780930881,0.00038878,4636.0,4635.9,12.03420571]
[1757780931407,0.00038878,4636.0,4635.9,10.76450571]
[1757780932011,0.00038878,4636.0,4635.9,11.23840571]
[1757780932389,0.00038878,4636.0,4635.9,10.76450571]
[1757780932718,0.00038878,4636.0,4635.9,6.71360571]
[1757780933016,0.00038878,4636.0,4635.9,10.76350571]
[1757780933223,0.00038878,4636.0,4635.9,11.23740571]
[1757780933928,0.23698878,4636.0,4635.9,10.47560571]
[1757780934108,0.00038878,4636.0,4635.9,10.76350571]
[1757780935724,0.23698878,4636.0,4635.9,10.47560571]
[1757780936026,1.02768878,4636.0,4635.9,10.47560571]
[1757780936398,0.00038878,4636.0,4635.9,10.47560571]
[1757780936626,0.00038878,4636.0,4635.9,10.76350571]
[1757780936798,0.00038878,4636.0,4635.9,12.03320571]
[1757780938463,0.002,4636.5,4636.4,2.15684582]
[1757780938757,0.002,4636.5,4636.4,9.1315304]
[1757780939158,0.002,4636.5,4636.4,9.5266304]
[1757780939954,1.0293,4636.5,4636.4,9.2387304]
[1757780940158,0.002,4636.5,4636.4,9.2387304]
[1757780940456,1.0293,4636.5,4636.4,9.2387304]
[1757780940815,1.0293,4636.5,4636.4,9.02304582]
[1757780941012,1.4744,4636.5,4636.4,9.02304582]
[1757780941261,1.4744,4636.5,4636.4,5.26404582]
[1757780941557,1.4744,4636.5,4636.4,6.02104582]
[1757780941713,1.4744,4636.5,4636.4,2.26404582]
[1757780942446,1.0293,4636.5,4636.4,2.26404582]
[1757780942647,0.002,4636.5,4636.4,3.53667649]
[1757780944258,0.002,4636.5,4636.4,5.08500156]
[1757780945039,0.002,4636.5,4636.4,3.53667649]
[1757780945263,0.002,4636.5,4636.4,5.08500156]
[1757780945468,1.0293,4636.5,4636.4,0.1072]
[1757780945647,1.4744,4636.5,4636.4,0.1072]
[1757780945843,1.4744,4636.5,4636.4,2.26404582]
[1757780946464,1.0293,4636.5,4636.4,2.26404582]
[1757780947168,1.0293,4636.5,4636.4,6.01904582]
[1757780948667,0.2386,4636.5,4636.4,6.01904582]
[1757780948966,0.002,4636.5,4636.4,12.6015999]
[1757780949164,0.002,4636.5,4636.4,12.1188766]
[1757780949569,0.002,4636.5,4636.4,11.05327483]
[1757780950573,0.002,4636.5,4636.4,11.84527483]
[1757780951051,0.002,4636.5,4636.4,11.05327483]
[1757780951251,0.002,4636.5,4636.4,7.29827483]
[1757780951460,0.002,4636.5,4636.4,11.05127483]
[1757780951857,0.2386,4636.5,4636.4,5.26404582]
[1757780952062,1.0293,4636.5,4636.4,10.56552684]
[1757780952854,1.0293,4636.5,4636.4,9.01604582]
[1757780953159,1.0293,4636.5,4636.4,6.81352684]
[1757780953341,1.0293,4636.5,4636.4,10.56552684]
[1757780953742,1.0293,4636.5,4636.4,6.81352684]
[1757780954341,1.0293,4636.5,4636.4,10.56452684]
[1757780955671,0.2386,4636.5,4636.4,10.56452684]
[1757780955844,0.002,4636.5,4636.4,11.30189322]
[1757780956035,0.002,4636.5,4636.4,11.83019145]
[1757780956242,0.002,4636.5,4636.4,11.03209145]
[1757780957678,0.002,4636.5,4636.4,10.58889145]
[1757780957986,0.002,4636.5,4636.4,11.03209145]
[1757780959892,0.002,4636.5,4636.4,10.92489145]
[1757780960587,0.002,4636.5,4636.4,10.17999145]
[1757780960807,0.002,4636.5,4636.4,10.48169145]
[1757780962378,0.002,4636.5,4636.4,10.92489145]
[1757780963395,0.002,4636.5,4636.4,10.48169145]
[1757780963689,0.002,4636.5,4636.4,10.17999145]
[1757780964199,0.002,4636.5,4636.4,10.48169145]
[1757780964899,0.002,4636.5,4636.4,10.17999145]
[1757780965599,0.2475,4636.5,4636.4,10.17999145]
[1757780965802,0.002,4636.5,4636.4,10.17999145]
[1757780968194,0.002,4636.5,4636.4,10.92489145]
[1757780970101,0.002,4636.5,4636.4,11.03209145]
[1757780974889,0.002,4636.5,4636.4,41.03209145]
[1757780977407,0.002,4636.5,4636.4,42.11938141]
[1757780977581,0.00039693,4636.5,4636.4,44.31881904]
[1757780977781,0.00039693,4636.5,4636.4,42.39417012]
[1757780980023,0.00039693,4636.5,4636.4,41.59607012]
[1757780980806,0.00039693,4636.5,4636.4,41.30688016]
[1757780982841,0.00039693,4636.5,4636.4,42.96783348]
[1757780983198,0.00039693,4636.5,4636.4,38.47193348]
[1757780983533,0.30219693,4636.5,4636.4,10.27319145]
[1757780983935,0.00039693,4636.5,4636.4,10.27319145]
[1757780984538,0.00039693,4636.5,4636.4,10.57489145]
[1757780984705,0.00039693,4636.5,4636.4,41.01809145]
[1757780986238,0.00039693,4636.5,4636.4,40.27319145]
[1757780986441,1.48839693,4636.5,4636.4,38.89284582]
[1757780986744,1.48839693,4636.5,4636.4,8.89284582]
[1757780987933,1.10499693,4636.5,4636.4,3.0]
[1757780988138,1.10499693,4636.5,4636.4,10.44087741]
[1757780988668,1.10499693,4636.5,4636.4,5.15684582]
[1757780988872,1.48839693,4636.5,4636.4,8.89184582]
[1757780991746,1.10499693,4636.5,4636.4,10.44087741]
[1757780992331,0.00039693,4636.5,4636.4,10.44087741]
[1757780992551,0.25399693,4636.5,4636.4,6.70587741]
[1757780992752,1.06959693,4636.5,4636.4,10.43987741]
[1757780993231,0.00039693,4636.5,4636.4,10.43987741]
[1757780994528,0.00039693,4636.5,4636.4,8.89084582]
[1757780994751,1.06959693,4636.5,4636.4,10.43939757]
[1757780995780,1.06959693,4636.5,4636.4,8.89084582]
[1757780996349,1.06959693,4636.5,4636.4,8.99804582]
[1757780996549,1.06959693,4636.5,4636.4,10.54659757]
[1757780997351,0.25399693,4636.5,4636.4,10.54659757]
[1757780997662,0.00039693,4636.5,4636.4,10.54659757]
[1757780997859,1.49789693,4636.5,4636.4,5.38775175]
[1757780998065,1.49789693,4636.5,4636.4,0.1072]
[1757781000279,2.15684582,4636.4,4636.3,0.001]
[1757781000482,2.95752916,4636.4,4636.3,0.001]
[1757781000682,2.38477476,4636.4,4636.3,0.001]
[1757781001258,4.54162058,4636.4,4636.3,0.001]
[1757781001467,5.00291796,4636.4,4636.3,0.001]
[1757781001787,2.84607214,4636.4,4636.3,0.001]
[1757781002105,5.0116013,4636.4,4636.3,0.001]
[1757781002384,4.12462654,4636.4,4636.3,0.001]
[1757781002587,4.13330988,4636.4,4636.3,0.001]
[1757781002964,1.97646406,4636.4,4636.3,0.001]
[1757781003163,1.50648334,4636.4,4636.3,0.001]
[1757781003569,3.66332916,4636.4,4636.3,0.001]
[1757781004160,3.26682916,4636.4,4636.3,0.001]
[1757781004359,3.66332916,4636.4,4636.3,0.001]
[1757781005093,1.50648334,4636.4,4636.3,0.001]
[1757781005294,4.22204452,4636.4,4636.3,0.001]
[1757781006582,0.00039693,4636.5,4636.3,0.2946]
[1757781006782,0.00039693,4636.5,4636.4,2.70454582]
[1757781007194,0.00039693,4636.5,4636.4,2.99814582]
[1757781007375,0.00039693,4636.5,4636.4,2.55764582]
[1757781007808,0.00039693,4636.5,4636.4,0.4008]
[1757781007978,0.00039693,4636.5,4636.4,0.1072]
[1757781008179,0.00039693,4636.5,4636.4,2.55764582]
[1757781008381,0.00039693,4636.5,4636.4,3.01971427]
[1757781008590,0.00039693,4636.5,4636.4,4.34667868]
[1757781008794,0.00039693,4636.5,4636.4,8.07367868]
[1757781008994,0.00039693,4636.5,4636.4,8.05211023]
[1757781009484,0.00039693,4636.5,4636.4,11.05211023]
[1757781010576,0.00039693,4636.5,4636.4,41.6160889]
[1757781010977,0.002,4637.0,4636.4,41.6160889]
[1757781010978,0.002,4637.0,4636.9,2.15661325]
[1757781011209,0.002,4637.0,4636.9,38.06403067]
[1757781011517,0.002,4637.0,4636.9,42.69296454]
[1757781011678,1e-08,4637.5,4637.4,2.94838073]
[1757781011877,1e-08,4637.5,4637.4,40.2599232]
[1757781012110,1e-08,4637.5,4637.4,43.92081123]
[1757781012610,1e-08,4637.5,4637.4,44.56743473]
[1757781012808,1e-08,4637.5,4637.4,40.84143473]
[1757781012996,1e-08,4637.5,4637.4,45.13899134]
[1757781013197,1e-08,4637.5,4637.4,42.56383256]
[1757781013908,1e-08,4637.5,4637.4,42.85302252]
[1757781016211,1e-08,4637.5,4637.4,39.92002252]
[1757781016378,1e-08,4637.5,4637.4,43.91881123]
[1757781021115,0.792,4640.9,4640.0,2.15513783]
[1757781021326,0.2161,4640.1,4640.0,2.15513783]
[1757781021963,0.2161,4640.1,4639.8,0.1072]
[1757781022461,0.2161,4640.1,4639.8,2.26245661]
[1757781023025,0.2161,4640.1,4639.8,0.1072]
[1757781023218,0.0188,4640.0,4639.8,0.1072]
[1757781023418,0.2348,4639.9,4639.8,0.1072]
[1757781023671,0.2348,4639.9,4639.8,2.26246531]
[1757781024718,0.2141,4639.9,4639.8,2.26246531]
[1757781026254,0.2141,4639.9,4639.8,2.28401796]
[1757781026457,0.0207,4640.7,4640.4,2.15498584]
[1757781026946,0.2121,4640.5,4640.4,2.15498584]
[1757781027517,0.2121,4640.5,4640.4,2.26218584]
[1757781029740,0.2121,4640.5,4640.4,2.2837357]
[1757781030368,0.2121,4640.5,4640.4,2.26218584]
[1757781030571,0.2121,4640.5,4640.4,2.2837357]
[1757781030940,0.1072,4641.3,4640.6,2.15488538]
[1757781031140,0.1072,4641.3,4640.6,5.87188538]
[1757781031341,0.099,4640.7,4640.6,5.87188538]
[1757781031736,0.2337,4640.7,4640.6,3.717]
[1757781032143,0.099,4640.7,4640.6,3.717]
[1757781032778,0.099,4640.7,4640.4,3.8222]
[1757781033082,0.2337,4640.7,4640.4,3.8222]
[1757781033377,0.099,4640.7,4640.4,0.1072]
[1757781033955,0.099,4640.7,4640.5,2.15493681]
[1757781034384,0.099,4640.7,4640.4,0.12874986]
[1757781034556,0.1072,4641.3,4640.7,2.15484732]
[1757781034762,1.7612,4641.7,4641.0,2.15469017]
[1757781035090,1.7612,4641.7,4640.7,5.86981578]
[1757781035091,0.099,4641.1,4640.9,2.26192582]
[1757781035375,0.099,4641.1,4641.0,2.15470803]
[1757781035539,0.099,4641.1,4640.9,2.26195393]
[1757781036171,0.099,4641.1,4640.9,0.1072]
[1757781037394,0.1347,4641.0,4640.2,5.86904449]
[1757781037595,0.1072,4641.2,4640.3,0.02155033]
[1757781037897,0.1072,4641.2,4640.5,2.15493042]
[1757781038099,0.1072,4641.2,4640.5,2.15494008]
[1757781038281,0.099,4640.6,4640.5,2.15494008]
[1757781038463,0.099,4640.6,4640.4,2.2621826]
[1757781038662,0.099,4640.6,4640.5,2.1549402]
[1757781039394,1.654,4641.7,4640.7,2.15483357]
[1757781039608,0.1072,4641.5,4640.7,2.15483357]
[1757781039761,0.1072,4641.5,4640.7,0.1072]
[1757781040167,0.1072,4641.5,4640.7,2.26203852]
[1757781040363,0.1072,4641.5,4640.7,0.1072]
[1757781040705,0.099,4640.8,4640.7,0.1072]
[1757781041208,0.099,4640.8,4640.7,2.26204732]
[1757781041411,0.099,4640.8,4640.7,0.1072]
[1757781041769,0.099,4640.8,4640.7,2.26204732]
[1757781042306,0.1072,4641.5,4640.7,0.1072]
[1757781042498,0.40830351,4641.4,4640.7,0.1072]
[1757781042803,0.40830351,4641.4,4640.7,2.26203779]
[1757781042998,0.40830351,4641.4,4640.7,0.1072]
[1757781043391,0.099,4640.8,4640.7,0.1072]
[1757781043810,0.1072,4641.5,4641.0,2.15469049]
[1757781044010,0.002,4641.6,4641.0,2.62559049]
[1757781044193,0.002,4641.6,4641.1,2.15462071]
[1757781044714,0.002,4641.6,4641.2,0.4709]
[1757781044917,0.002,4641.6,4641.2,0.49244615]
[1757781045215,0.002,4641.6,4641.5,2.46397592]
[1757781045514,0.002,4641.6,4641.5,0.3095]
[1757781045883,0.002,4641.6,4641.4,0.1072]
[1757781046117,0.2181,4641.6,4641.4,0.1072]
[1757781047386,0.2181,4641.6,4641.4,2.26172168]
[1757781047798,0.2181,4641.6,4641.4,0.1072]
[1757781048207,0.002,4641.6,4641.5,2.46827592]
[1757781048407,0.002,4641.6,4641.5,2.93587592]
[1757781048683,0.002,4641.6,4641.5,3.04307592]
[1757781049688,0.101,4641.6,4641.5,0.1072]
[1757781049917,0.101,4641.6,4641.3,0.1072]
[1757781051236,0.101,4641.6,4640.7,3.708]
[1757781051432,0.34000464,4641.6,4640.7,2.15484214]
[1757781052053,0.34000464,4641.6,4640.8,2.1547965]
[1757781052461,0.34000464,4641.6,4640.6,0.001]
[1757781052462,0.34000464,4641.6,4640.6,0.4287]
[1757781052648,0.34000464,4641.6,4640.8,2.1547889]
[1757781052847,0.34000464,4641.6,4640.7,2.15483822]
[1757781053049,0.34000464,4641.6,4640.6,0.4287]
[1757781053050,0.34000464,4641.6,4640.9,2.15474324]
[1757781053249,0.101,4641.6,4640.7,2.15480252]
[1757781053450,0.101,4641.6,4640.6,0.4287]
[1757781053644,0.101,4641.6,4640.8,2.15479338]
[1757781053842,0.002,4641.6,4641.5,0.3045]
[1757781054051,0.002,4641.6,4641.5,2.88667592]
[1757781055346,0.002,4641.6,4640.9,2.15475446]
[1757781055553,0.002,4641.6,4641.2,2.15461286]
[1757781055766,0.002,4641.6,4641.3,2.15456638]
[1757781056373,0.002,4641.6,4641.3,2.58226638]
[1757781056757,0.002,4641.6,4640.9,3.0]
[1757781056957,0.002,4641.6,4641.0,3.0]
[1757781057272,0.002,4641.6,4641.1,0.4277]
[1757781057479,0.002,4641.6,4641.2,2.15461518]
[1757781057670,0.002,4641.6,4641.3,2.15456843]
[1757781058072,0.002,4641.6,4641.5,2.45897592]
[1757781058605,0.002,4641.6,4640.9,0.4277]
[1757781058606,0.101,4641.6,4640.9,0.4277]
[1757781058753,0.101,4641.6,4641.2,2.15460929]
[1757781058954,0.101,4641.6,4641.2,2.58230929]
[1757781059279,0.101,4641.6,4641.2,2.15460929]
[1757781059654,0.002,4641.6,4641.2,2.15460929]
[1757781059867,0.002,4641.6,4641.2,2.58230929]
[1757781060252,0.002,4641.6,4641.0,3.705]
[1757781060481,0.002,4641.6,4641.1,2.15462514]
[1757781060651,0.002,4641.6,4640.9,0.4277]
[1757781060865,0.002,4641.6,4640.9,4.1327]
[1757781061051,0.002,4641.6,4641.2,2.15459229]
[1757781061452,0.002,4641.6,4641.1,0.1072]
[1757781061453,0.002,4641.6,4641.4,2.15448884]
[1757781061854,0.002,4641.6,4641.4,0.4277]
[1757781062997,0.002,4641.6,4641.4,2.58218782]
[1757781063199,0.002,4641.6,4641.5,2.45897592]
[1757781063707,0.002,4641.6,4641.5,2.88667592]
[1757781064392,0.002,4641.6,4641.5,3.28469808]
[1757781065870,0.002,4641.6,4641.5,1.13022216]
[1757781066131,0.002,4641.6,4641.5,2.99387592]
[1757781066772,0.002,4641.6,4641.5,0.8394]
[1757781067088,0.002,4641.6,4641.5,2.99387592]
[1757781069295,0.002,4641.6,4641.5,0.8394]
[1757781069598,0.002,4641.6,4641.5,2.99387592]
[1757781069796,0.002,4641.6,4641.5,3.50871979]
[1757781074712,0.002,4641.6,4641.5,4.29211979]
[1757781075417,0.002,4641.6,4641.5,4.31366454]
[1757781075711,0.002,4641.6,4641.5,4.29211979]
[1757781078024,0.002,4641.6,4641.5,4.31366454]
[1757781078229,0.002,4641.6,4641.5,4.65157117]
[1757781078423,0.002,4641.6,4641.5,4.63002642]
[1757781079429,0.002,4641.6,4641.5,7.63002642]
[1757781079809,0.002,4641.6,4641.5,9.17494088]
[1757781080322,0.002,4641.6,4641.5,7.63002642]
[1757781081435,0.002,4641.6,4641.5,7.63102642]
[1757781083123,0.002,4641.6,4641.5,7.52382642]
[1757781084196,0.08,4642.8,4642.7,2.15391905]
[1757781084401,0.08,4642.8,4642.7,10.71831096]
[1757781084634,0.08,4642.8,4642.7,11.45541096]
[1757781085217,0.08,4642.8,4642.7,11.65649339]
[1757781085413,0.08,4642.8,4642.7,4.52849339]
[1757781085617,0.08,4642.8,4642.7,8.22449339]
[1757781085828,0.08,4642.8,4642.7,8.65649339]
[1757781087242,0.179,4642.8,4642.7,7.91839339]
[1757781087409,0.179,4642.8,4642.7,7.70300148]
[1757781087608,0.179,4642.8,4642.7,0.20108243]
[1757781087921,0.1794,4642.8,4642.7,6.05000148]
[1757781088943,0.08,4642.8,4642.7,6.05000148]
[1757781089128,0.2961,4642.8,4642.7,6.05000148]
[1757781089715,0.2961,4642.8,4642.7,6.04900148]
[1757781090948,0.2961,4642.8,4642.7,2.35500148]
[1757781091116,0.2961,4642.8,4642.7,6.04900148]
[1757781091812,0.2961,4642.8,4642.7,0.20108243]
[1757781092159,1.1058,4642.8,4642.7,0.20108243]
[1757781092546,0.2961,4642.8,4642.7,0.20108243]
[1757781093962,0.08,4642.8,4642.7,0.20108243]
[1757781094239,0.2961,4642.8,4642.7,0.20108243]
[1757781095285,1.087,4642.8,4642.7,0.20108243]
[1757781095441,1.1957,4642.8,4642.7,0.20108243]
[1757781095971,0.2961,4642.8,4642.7,0.20108243]
[1757781098547,3.25967266,4642.8,4642.7,0.20108243]
[1757781098757,1.1058,4642.8,4642.7,0.20108243]
[1757781099957,3.25967266,4642.8,4642.7,0.20108243]
[1757781100157,4.05167266,4642.8,4642.7,0.20108243]
[1757781100362,4.83741817,4642.8,4642.7,0.20108243]
[1757781101146,2.66474551,4642.8,4642.7,0.20108243]
[1757781101351,1.087,4642.8,4642.7,0.20108243]
[1757781101982,1.089,4642.8,4642.7,0.20108243]
[1757781102983,3.24287266,4642.8,4642.7,0.20108243]
[1757781103158,1.089,4642.8,4642.7,0.20108243]
[1757781103695,0.2981,4642.8,4642.7,0.20108243]
[1757781103986,0.86399,4642.8,4642.7,0.20108243]
[1757781105176,3.80876266,4642.8,4642.7,0.20108243]
[1757781105485,3.82756266,4642.8,4642.7,0.20108243]
[1757781106785,3.01786266,4642.8,4642.7,0.20108243]
[1757781107384,0.86399,4642.8,4642.7,0.20108243]
[1757781108315,0.64789,4642.8,4642.7,0.20108243]
[1757781110409,0.74689,4642.8,4642.7,0.20108243]
[1757781110920,0.64789,4642.8,4642.7,0.20108243]
[1757781111420,0.74689,4642.8,4642.7,0.20108243]
[1757781112594,0.64789,4642.8,4642.7,0.94068243]
[1757781113323,3.769,4642.8,4642.7,0.94068243]
[1757781114032,3.868,4642.8,4642.7,0.20108243]
[1757781114208,0.181,4642.8,4642.7,0.20108243]
[1757781114392,3.868,4642.8,4642.7,0.20108243]
[1757781116106,3.769,4642.8,4642.7,0.20108243]
[1757781116737,0.082,4642.8,4642.7,0.20108243]
[1757781116910,3.768,4642.8,4642.7,0.20108243]
[1757781117116,4.52537898,4642.8,4642.7,0.20108243]
[1757781117620,4.52537898,4642.8,4642.7,0.94068243]
[1757781120222,4.74147898,4642.8,4642.7,0.20108243]
[1757781120427,8.49865164,4642.8,4642.7,0.20108243]
[1757781120612,18.79049745,4642.8,4642.7,0.20108243]
[1757781120965,18.91085308,4642.8,4642.7,0.20108243]
[1757781121102,18.91085308,4642.8,4641.6,0.001]
[1757781121103,0.792,4642.2,4641.6,0.001]
[1757781121450,0.792,4642.0,4641.7,0.2014813]
[1757781121650,0.792,4641.9,4641.8,0.2014813]
[1757781121852,4.477,4641.9,4641.8,0.2014813]
[1757781122354,3.685,4641.9,4641.8,0.9410813]
[1757781122576,3.7922,4641.9,4641.8,0.9410813]
[1757781122996,3.7922,4641.9,4641.8,0.4919813]
[1757781123273,3.7922,4641.9,4641.8,0.2014813]
[1757781124540,3.7922,4641.9,4641.8,0.9410813]
[1757781124541,3.7912,4641.9,4641.8,0.9410813]
[1757781124731,0.1072,4641.9,4641.8,0.4919813]
[1757781124932,3.7912,4641.9,4641.8,0.9410813]
[1757781125439,3.7912,4641.9,4641.8,3.09541797]
[1757781125834,3.7912,4641.9,4641.8,0.9410813]
[1757781126645,3.7912,4641.9,4641.8,0.2014813]
[1757781126844,3.7912,4641.9,4641.8,0.2014451]
[1757781126845,3.8902,4641.9,4641.8,0.2014451]
[1757781128388,6.02902,4641.9,4641.8,0.2014451]
[1757781128673,6.16372,4641.9,4641.8,0.2014451]
[1757781129263,6.02902,4641.9,4641.8,0.2014451]
[1757781129575,0.792,4641.8,4641.6,0.001]
[1757781129783,5.157102,4641.7,4641.6,0.001]
[1757781129945,5.373202,4641.7,4641.6,0.001]
[1757781130145,6.165702,4641.7,4641.6,0.001]
[1757781132577,8.32008509,4641.7,4641.6,0.001]
[1757781132785,8.33888509,4641.7,4641.6,0.001]
[1757781132949,11.44028446,4641.7,4641.6,0.001]
[1757781133154,11.45908446,4641.7,4641.6,0.001]
[1757781133348,14.73093027,4641.7,4641.6,0.001]
[1757781133548,14.81714432,4641.7,4641.6,0.001]
[1757781133752,11.54529851,4641.7,4641.6,0.001]
[1757781134073,7.84349851,4641.7,4641.6,0.001]
[1757781134384,10.61279914,4641.7,4641.6,0.001]
[1757781134972,8.45841605,4641.7,4641.6,0.001]
[1757781135581,10.61279914,4641.7,4641.6,0.001]
[1757781136548,11.39939914,4641.7,4641.6,0.001]
[1757781137177,10.61279914,4641.7,4641.6,0.001]
[1757781137798,10.61179914,4641.7,4641.6,0.001]
[1757781138556,1.77641605,4641.7,4641.6,0.001]
[1757781138751,3.681,4641.7,4641.6,0.2935]
[1757781138985,0.002,4641.9,4641.6,1.4867]
[1757781139186,3.681,4641.8,4641.7,1.1932]
[1757781139360,3.681,4641.8,4641.7,1.4857]
[1757781141759,3.681,4641.8,4641.7,3.64008309]
[1757781142673,3.682,4641.9,4641.8,2.15433667]
[1757781142883,3.682,4641.9,4641.8,4.23040596]
[1757781143571,3.682,4641.9,4641.8,2.07606929]
[1757781143771,3.682,4641.9,4641.8,1.4857]
[1757781144076,0.002,4641.9,4641.8,3.64003667]
[1757781144381,0.002,4641.9,4641.8,3.76878003]
[1757781145895,0.002,4641.9,4641.8,3.74723667]
[1757781146091,0.002,4641.9,4641.8,4.33760101]
[1757781148660,0.002,4641.9,4641.8,8.01560101]
[1757781150165,0.002,4641.9,4641.8,11.01560101]
[1757781150406,0.08,4642.8,4642.7,2.15391905]
[1757781150585,0.08,4642.8,4642.7,5.85345824]
[1757781150785,0.08,4642.8,4642.7,8.2255638]
[1757781151206,0.08,4642.8,4642.7,4.5475638]
[1757781154117,0.08,4642.8,4642.7,3.3543638]
[1757781155625,0.08,4642.8,4642.7,3.7874638]
[1757781155798,0.08,4642.8,4642.7,3.80900299]
[1757781156199,0.08,4642.8,4642.7,3.7874638]
[1757781156611,0.082,4642.8,4642.7,3.7874638]
[1757781157795,0.082,4642.8,4642.7,2.26111905]
[1757781160400,0.082,4642.8,4642.7,2.69421905]
[1757781161594,0.082,4642.8,4642.7,0.1072]
[1757781161790,0.082,4642.8,4642.7,2.26111905]
[1757781162428,0.082,4642.8,4642.7,2.69421905]
[1757781162734,0.082,4642.8,4642.7,2.98671905]
[1757781163297,0.082,4642.8,4642.7,4.03564533]
[1757781164341,0.082,4642.8,4642.7,3.60254533]
[1757781164497,0.082,4642.8,4642.7,4.03564533]
[1757781165135,0.082,4642.8,4642.7,4.79574533]
[1757781172741,0.082,4642.8,4642.7,4.03504533]
[1757781175356,0.181,4642.8,4642.7,3.31004533]
[1757781175559,0.181,4642.8,4642.7,2.26111905]
[1757781176146,0.181,4642.8,4642.7,0.1072]
[1757781176459,0.181,4642.8,4642.7,2.26111905]
[1757781176623,0.9099,4642.8,4642.7,2.26111905]
[1757781176824,0.9099,4642.8,4642.3,3.69609313]
[1757781177025,0.7289,4642.7,4642.4,0.1072]
[1757781177436,0.0994,4642.5,4642.4,0.1072]
[1757781177928,0.0994,4642.5,4642.4,2.26125824]
[1757781178128,0.0994,4642.5,4642.4,0.1072]
[1757781178629,0.0994,4642.5,4642.4,2.26125824]
[1757781178827,0.8283,4642.5,4642.4,0.1072]
[1757781179136,1.0698,4642.5,4642.0,2.15423634]
[1757781179341,0.7289,4642.4,4642.1,2.15418849]
[1757781179738,0.792,4642.1,4641.8,0.001]
[1757781179938,2.94629026,4641.9,4641.8,0.001]
[1757781180154,3.04629026,4641.9,4641.8,0.001]
[1757781180552,3.90879026,4641.9,4641.8,0.001]
[1757781181653,7.44419026,4641.9,4641.8,0.001]
[1757781183264,7.57779026,4641.9,4641.8,0.001]
[1757781183444,8.60522631,4641.9,4641.8,0.001]
[1757781186445,8.47162631,4641.9,4641.8,0.001]
[1757781187248,8.60522631,4641.9,4641.8,0.001]
[1757781188098,8.60522631,4641.9,4640.8,0.4331]
[1757781188099,2.268,4641.5,4639.6,0.001]
[1757781188245,2.94731176,4639.7,4639.6,0.001]
[1757781188450,11.48281176,4639.7,4639.6,0.001]
[1757781188653,12.23111176,4639.7,4639.6,0.001]
[1757781188961,17.66725248,4639.7,4639.6,0.001]
[1757781189287,18.09935248,4639.7,4639.6,0.001]
[1757781189446,19.53935248,4639.7,4639.6,0.001]
[1757781189643,2.94768345,4638.9,4638.8,1e-08]
[1757781189848,9.61568345,4638.9,4638.8,1e-08]
[1757781190072,11.99890382,4638.9,4638.8,1e-08]
[1757781190678,8.31150382,4638.9,4638.8,1e-08]
[1757781190880,11.97950382,4638.9,4638.8,1e-08]
[1757781191385,0.64696096,4639.0,4638.8,1e-08]
[1757781191583,0.64696096,4639.0,4638.8,1.48360001]
[1757781191750,3.668,4638.9,4638.8,0.29290001]
[1757781192086,5.82368345,4638.9,4638.8,1e-08]
[1757781192558,3.668,4638.9,4638.8,0.72500001]
[1757781192759,0.1072,4639.0,4638.8,0.72500001]
[1757781192987,3.668,4638.9,4638.8,0.29290001]
[1757781193202,5.82368345,4638.9,4638.8,1e-08]
[1757781193558,3.668,4638.9,4638.8,0.29290001]
[1757781193756,3.668,4638.9,4638.8,0.72500001]
[1757781194061,3.668,4638.9,4638.8,1.48360001]
[1757781194282,0.1072,4639.2,4638.8,1.48360001]
[1757781194464,3.668,4639.1,4638.9,1.1907]
[1757781194665,0.1072,4639.2,4639.0,1.4836]
[1757781194868,3.668,4639.1,4639.0,0.2929]
[1757781195180,0.1072,4639.2,4639.0,0.2929]
[1757781195386,3.668,4639.1,4639.0,0.2929]
[1757781195772,3.668,4639.1,4639.0,1.5051]
[1757781196368,0.1072,4639.2,4639.0,1.5051]
[1757781196567,3.668,4639.1,4639.0,1.0336]
[1757781196886,0.1072,4639.2,4639.1,0.4715]
[1757781197091,2.43876405,4639.2,4638.8,0.00100001]
[1757781197294,3.668,4639.1,4638.8,0.47250001]
[1757781197796,3.668,4639.0,4638.8,0.47250001]
[1757781198003,5.82364415,4639.0,4638.8,0.47250001]
[1757781198300,3.668,4639.0,4638.8,0.47250001]
[1757781199603,3.668,4639.0,4638.9,0.3109]
[1757781199902,3.668,4639.0,4638.9,1.5231]
[1757781200697,1.654,4639.1,4638.9,0.7824]
[1757781200908,3.668,4639.0,4638.9,0.3109]
[1757781201078,3.668,4639.0,4638.9,0.7824]
[1757781201478,2.15580051,4638.7,4636.6,0.7407]
[1757781201821,2.15614825,4637.9,4636.9,0.4715]
[1757781201969,8.70026308,4637.9,4636.9,0.4715]
[1757781202169,9.46216308,4637.9,4636.9,0.4715]
[1757781202901,9.46216308,4637.9,4636.2,0.4715]
[1757781203109,9.48156308,4637.9,4636.2,0.4715]
[1757781203603,12.48156308,4637.9,4636.2,0.4715]
[1757781203775,12.48156308,4637.9,4636.0,0.001]
[1757781204206,14.74956308,4637.9,4636.0,0.001]
[1757781204505,24.3861706,4637.9,4636.0,0.001]
[1757781205071,20.7181706,4637.9,4636.0,0.001]